bitfinex/quotes_BTCUSD_20241222
["timestamp","ask_amount","ask_price","bid_price","bid_amount"]
[1734893184815,3.09664529,96112.0,96111.0,0.77391869]
[1734893185394,3.10464529,96112.0,96111.0,0.73230069]
[1734893185830,3.09664529,96112.0,96111.0,0.72905158]
[1734893186093,2.98264529,96112.0,96111.0,0.72905158]
[1734893186313,2.95764529,96112.0,96111.0,0.72905158]
[1734893186448,2.95764529,96112.0,96111.0,0.73231994]
[1734893186654,3.08964529,96112.0,96111.0,0.73231994]
[1734893186853,3.08064529,96112.0,96111.0,0.73231994]
[1734893187262,3.08864529,96112.0,96111.0,0.73231994]
[1734893188677,3.08064529,96112.0,96111.0,0.73231994]
[1734893189096,3.08964529,96112.0,96111.0,0.72905158]
[1734893189507,3.08964529,96112.0,96111.0,0.73231657]
[1734893189910,3.08064529,96112.0,96111.0,0.73231657]
[1734893190109,3.08964529,96112.0,96111.0,0.73231657]
[1734893190828,0.66364529,96112.0,96111.0,0.73231657]
[1734893190979,3.10564529,96112.0,96111.0,0.73231657]
[1734893191605,3.20564529,96112.0,96111.0,0.73231657]
[1734893191886,3.19664529,96112.0,96111.0,0.73231657]
[1734893192112,3.20564529,96112.0,96111.0,0.73231657]
[1734893192423,3.19664529,96112.0,96111.0,0.73231657]
[1734893192860,3.28254529,96112.0,96111.0,0.54868157]
[1734893193300,3.28254529,96112.0,96111.0,0.50456131]
[1734893193469,3.27354529,96112.0,96111.0,0.35881433]
[1734893193674,3.27354529,96112.0,96086.0,0.0001714]
[1734893193675,0.65337789,96093.0,96086.0,0.0001714]
[1734893193840,3.19668629,96093.0,96086.0,0.0001714]
[1734893194237,3.27358629,96093.0,96086.0,0.0001714]
[1734893194485,0.63039089,96087.0,96086.0,0.0001714]
[1734893194798,3.19669929,96087.0,96086.0,0.0001714]
[1734893195715,3.19669929,96087.0,96086.0,4e-07]
[1734893195943,0.75469929,96087.0,96086.0,4e-07]
[1734893196241,0.76369929,96087.0,96086.0,4e-07]
[1734893196367,0.75469929,96087.0,96086.0,4e-07]
[1734893196774,0.76369929,96087.0,96086.0,4e-07]
[1734893198391,0.75469929,96087.0,96086.0,4e-07]
[1734893198794,0.39069929,96087.0,96086.0,4e-07]
[1734893199741,0.59069929,96087.0,96086.0,4e-07]
[1734893200120,0.75469929,96087.0,96086.0,4e-07]
[1734893200529,0.76069929,96087.0,96086.0,4e-07]
[1734893201777,0.75469929,96087.0,96086.0,4e-07]
[1734893202240,0.76369929,96087.0,96086.0,4e-07]
[1734893202560,0.75469929,96087.0,96086.0,4e-07]
[1734893202762,0.76369929,96087.0,96086.0,4e-07]
[1734893205124,0.75469929,96087.0,96086.0,4e-07]
[1734893205512,0.76369929,96087.0,96086.0,4e-07]
[1734893205709,0.75469929,96087.0,96086.0,4e-07]
[1734893206181,0.76369929,96087.0,96086.0,4e-07]
[1734893206399,0.54069929,96087.0,96086.0,4e-07]
[1734893206949,0.53169929,96087.0,96086.0,4e-07]
[1734893208293,0.55469929,96087.0,96086.0,4e-07]
[1734893208860,0.56369929,96087.0,96086.0,4e-07]
[1734893209225,0.55469929,96087.0,96086.0,4e-07]
[1734893209380,0.56369929,96087.0,96086.0,4e-07]
[1734893210149,0.55469929,96087.0,96086.0,4e-07]
[1734893210756,0.54969929,96087.0,96086.0,4e-07]
[1734893211560,0.52669929,96087.0,96086.0,4e-07]
[1734893211787,0.53569929,96087.0,96086.0,4e-07]
[1734893212195,0.52669929,96087.0,96086.0,4e-07]
[1734893212420,0.53569929,96087.0,96086.0,4e-07]
[1734893212650,0.52669929,96087.0,96086.0,4e-07]
[1734893213052,0.53569929,96087.0,96086.0,4e-07]
[1734893213251,0.52669929,96087.0,96086.0,4e-07]
[1734893213770,0.53269929,96087.0,96086.0,4e-07]
[1734893218016,0.53287089,96087.0,96086.0,4e-07]
[1734893221966,0.52687089,96087.0,96086.0,4e-07]
[1734893222345,0.53387089,96087.0,96086.0,4e-07]
[1734893222584,0.52687089,96087.0,96086.0,4e-07]
[1734893222965,0.53287089,96087.0,96086.0,4e-07]
[1734893226819,0.55587089,96087.0,96086.0,4e-07]
[1734893227894,0.54987089,96087.0,96086.0,4e-07]
[1734893228254,0.65887089,96087.0,96086.0,4e-07]
[1734893228454,0.74987089,96087.0,96086.0,4e-07]
[1734893228658,0.17224689,96068.0,96064.0,0.0001714]
[1734893228862,3.19674029,96068.0,96064.0,0.0001714]
[1734893229963,3.1969027,96068.0,96064.0,0.0001714]
[1734893230496,3.2741027,96068.0,96067.0,4e-07]
[1734893230682,0.8321027,96068.0,96067.0,4e-07]
[1734893231334,0.8381027,96068.0,96067.0,4e-07]
[1734893231536,0.44524689,96065.0,96064.0,8e-07]
[1734893231750,0.54655529,96065.0,96064.0,8e-07]
[1734893233136,0.55555529,96065.0,96064.0,8e-07]
[1734893233340,0.3263974,96065.0,96064.0,8e-07]
[1734893233544,0.3033974,96065.0,96064.0,8e-07]
[1734893234142,0.76919631,96065.0,96064.0,8e-07]
[1734893234519,0.66919631,96065.0,96064.0,8e-07]
[1734893234719,0.6483542,96065.0,96064.0,8e-07]
[1734893235025,0.64587157,96065.0,96064.0,8e-07]
[1734893235255,0.65487157,96065.0,96064.0,8e-07]
[1734893235465,0.18007266,96065.0,96064.0,8e-07]
[1734893235898,0.18907266,96065.0,96064.0,8e-07]
[1734893236303,0.36207266,96065.0,96064.0,8e-07]
[1734893237334,0.46207266,96065.0,96064.0,8e-07]
[1734893238229,0.45307266,96065.0,96064.0,8e-07]
[1734893238400,0.46207266,96065.0,96064.0,8e-07]
[1734893238599,0.45307266,96065.0,96064.0,8e-07]
[1734893239555,0.46207266,96065.0,96064.0,8e-07]
[1734893240909,0.45346489,96053.0,96043.0,0.0613407]
[1734893241065,2.99677329,96053.0,96043.0,0.0613407]
[1734893241625,3.00329066,96053.0,96043.0,0.0613407]
[1734893242352,3.01029066,96053.0,96043.0,0.0613407]
[1734893243216,3.00329066,96053.0,96043.0,0.0613407]
[1734893244087,2.98029066,96053.0,96043.0,0.0613407]
[1734893244369,1.79929066,96053.0,96043.0,0.0613407]
[1734893244611,1.80829066,96053.0,96043.0,0.0613407]
[1734893244988,1.78177329,96053.0,96043.0,0.0613407]
[1734893245185,1.78877329,96053.0,96043.0,0.0613407]
[1734893245498,1.63677329,96053.0,96043.0,0.0613407]
[1734893245706,1.61677329,96053.0,96043.0,0.0613407]
[1734893245958,1.62377329,96053.0,96043.0,0.0613407]
[1734893246126,1.60177329,96053.0,96043.0,0.0613407]
[1734893246453,1.00077329,96053.0,96052.0,0.0761857]
[1734893247076,1.00729021,96053.0,96052.0,0.0761857]
[1734893247848,1.00029021,96053.0,96052.0,0.0761857]
[1734893248351,1.00729021,96053.0,96052.0,0.0761857]
[1734893248558,1.00029021,96053.0,96052.0,0.0761857]
[1734893249108,1.00729021,96053.0,96052.0,0.0761857]
[1734893253460,0.72682532,96053.0,96052.0,0.0761857]
[1734893253902,0.08576381,96053.0,96052.0,0.0761857]
[1734893254071,2.77907221,96053.0,96052.0,0.0761857]
[1734893254508,2.77907221,96053.0,96052.0,8.57e-05]
[1734893255110,2.77207221,96053.0,96052.0,8.57e-05]
[1734893255493,2.78107221,96053.0,96052.0,8.57e-05]
[1734893255689,2.77207221,96053.0,96052.0,8.57e-05]
[1734893256383,2.78107221,96053.0,96052.0,8.57e-05]
[1734893256971,0.84707221,96053.0,96052.0,8.57e-05]
[1734893257174,0.33907221,96053.0,96052.0,8.57e-05]
[1734893257357,2.22207221,96053.0,96052.0,8.57e-05]
[1734893257565,1.82507221,96053.0,96052.0,8.57e-05]
[1734893257877,0.55807221,96053.0,96052.0,8.57e-05]
[1734893258289,0.33907221,96053.0,96052.0,8.57e-05]
[1734893258839,2.58007221,96053.0,96052.0,8.57e-05]
[1734893259031,0.33907221,96053.0,96052.0,8.57e-05]
[1734893259363,0.16551692,96053.0,96052.0,8.57e-05]
[1734893259565,0.01551692,96053.0,96052.0,0.1212857]
[1734893259879,0.01551692,96053.0,96052.0,0.12426225]
[1734893261363,0.00651692,96053.0,96052.0,0.12426225]
[1734893261597,0.01151692,96053.0,96052.0,0.12530317]
[1734893261794,0.01151692,96053.0,96052.0,0.12426225]
[1734893262099,0.00651692,96053.0,96052.0,0.12426225]
[1734893262402,0.0001716,96064.0,96053.0,0.208218]
[1734893262603,0.0001716,96064.0,96055.0,0.0783]
[1734893262801,0.0001716,96064.0,96060.0,0.208202]
[1734893263103,0.0065153,96063.0,96061.0,0.00296678]
[1734893263532,0.0065153,96063.0,96062.0,0.286498]
[1734893263730,0.0001716,96064.0,96062.0,0.286498]
[1734893263942,0.0001716,96064.0,96062.0,0.28946424]
[1734893264142,0.0001716,96064.0,96062.0,0.08126624]
[1734893264143,0.07224689,96063.0,96062.0,0.08126624]
[1734893264271,0.17355529,96063.0,96062.0,0.08126624]
[1734893264880,0.38175129,96063.0,96062.0,0.08126624]
[1734893265497,0.38375129,96063.0,96062.0,0.08126624]
[1734893266000,0.39026757,96063.0,96062.0,0.0783]
[1734893266651,0.38375129,96063.0,96062.0,0.0783]
[1734893268037,0.39026761,96063.0,96062.0,0.0783]
[1734893269326,0.38375129,96063.0,96062.0,0.0783]
[1734893270701,0.624594,96062.0,96053.0,0.0776]
[1734893270894,0.1013084,96061.0,96053.0,0.0776]
[1734893271370,0.208214,96055.0,96054.0,0.00296535]
[1734893271573,0.208214,96055.0,96053.0,0.0776]
[1734893272701,0.208214,96055.0,96053.0,0.0786]
[1734893276317,0.2083646,96065.0,96053.0,0.0786]
[1734893276318,0.0001716,96065.0,96053.0,0.0786]
[1734893276546,0.0001716,96065.0,96055.0,0.0776]
[1734893276753,0.0001716,96065.0,96055.0,0.07864092]
[1734893276959,0.0001716,96065.0,96056.0,0.00296426]
[1734893277163,0.0001716,96065.0,96055.0,0.07864092]
[1734893277348,0.2083646,96065.0,96055.0,0.0776]
[1734893277754,0.2083646,96065.0,96056.0,0.00296426]
[1734893278679,0.0031716,96064.0,96056.0,0.00296426]
[1734893278885,0.0001716,96064.0,96056.0,0.00296426]
[1734893279305,0.0031716,96064.0,96056.0,0.00296426]
[1734893279511,0.0001716,96064.0,96056.0,0.00296426]
[1734893279913,0.0001716,96064.0,96056.0,0.00396426]
[1734893280744,0.0001716,96064.0,96057.0,0.0776]
[1734893281105,0.0001716,96064.0,96058.0,0.00296106]
[1734893281950,0.208205,96059.0,96058.0,0.00296106]
[1734893282710,0.208205,96059.0,96058.0,0.00396106]
[1734893282881,0.1013084,96063.0,96058.0,0.00296106]
[1734893283083,0.0001716,96064.0,96058.0,0.00296106]
[1734893283228,0.002,96059.0,96058.0,0.00296106]
[1734893283442,0.208208,96058.0,96055.0,8.58e-05]
[1734893283842,0.416416,96058.0,96055.0,8.58e-05]
[1734893284785,0.43045789,96056.0,96055.0,8.58e-05]
[1734893284985,2.45976629,96056.0,96055.0,8.58e-05]
[1734893286019,2.46076629,96056.0,96055.0,8.58e-05]
[1734893286219,0.001,96056.0,96055.0,8.58e-05]
[1734893286761,0.28045389,96058.0,96055.0,8.58e-05]
[1734893287118,0.005,96056.0,96055.0,8.58e-05]
[1734893288337,0.28045389,96058.0,96055.0,8.58e-05]
[1734893289168,0.48866189,96058.0,96055.0,8.58e-05]
[1734893289936,0.48966189,96058.0,96055.0,8.58e-05]
[1734893290143,0.07224689,96056.0,96055.0,8.58e-05]
[1734893291074,2.61555529,96056.0,96055.0,8.58e-05]
[1734893291394,2.76555529,96056.0,96055.0,8.58e-05]
[1734893292096,1.40755529,96056.0,96055.0,8.58e-05]
[1734893292804,1.41407239,96056.0,96055.0,8.58e-05]
[1734893292976,1.42007239,96056.0,96055.0,8.58e-05]
[1734893293546,1.41407239,96056.0,96055.0,8.58e-05]
[1734893293948,2.77207239,96056.0,96055.0,8.58e-05]
[1734893294150,2.78249831,96056.0,96055.0,8.58e-05]
[1734893294923,2.78649831,96056.0,96055.0,8.58e-05]
[1734893296366,2.80949831,96056.0,96055.0,8.58e-05]
[1734893296760,2.88929831,96056.0,96055.0,8.58e-05]
[1734893297593,0.589428,96055.0,96052.0,7.702e-05]
[1734893297789,0.381218,96053.0,96052.0,7.702e-05]
[1734893298026,2.9245264,96053.0,96052.0,7.702e-05]
[1734893298286,2.99677329,96053.0,96052.0,7.702e-05]
[1734893298430,3.10329039,96053.0,96052.0,7.702e-05]
[1734893298659,3.22879039,96053.0,96052.0,7.702e-05]
[1734893298895,3.23379039,96053.0,96052.0,7.702e-05]
[1734893299305,3.22879039,96053.0,96052.0,7.702e-05]
[1734893299507,3.23779039,96053.0,96052.0,7.702e-05]
[1734893299694,3.32879039,96053.0,96052.0,2e-08]
[1734893299941,0.88679039,96053.0,96052.0,2e-08]
[1734893301116,0.89579039,96053.0,96052.0,2e-08]
[1734893301520,1.02692167,96053.0,96052.0,2e-08]
[1734893302292,1.03592167,96053.0,96052.0,2e-08]
[1734893302746,0.89579039,96053.0,96052.0,2e-08]
[1734893303462,0.88679039,96053.0,96052.0,2e-08]
[1734893304652,0.89579039,96053.0,96052.0,2e-08]
[1734893304828,0.88679039,96053.0,96052.0,2e-08]
[1734893305231,0.89579039,96053.0,96052.0,2e-08]
[1734893306439,0.28054489,96016.0,96014.0,8.57e-05]
[1734893306616,0.55485329,96016.0,96014.0,8.57e-05]
[1734893306850,2.99685329,96016.0,96014.0,8.57e-05]
[1734893307266,3.00337039,96016.0,96014.0,8.57e-05]
[1734893307636,3.00353268,96016.0,96014.0,8.57e-05]
[1734893308201,0.07224689,95993.0,95992.0,0.0759864]
[1734893308404,0.3096564,95993.0,95992.0,0.0759864]
[1734893308730,0.38190329,95993.0,95992.0,0.0759864]
[1734893309141,0.82390329,95993.0,95992.0,0.0759864]
[1734893309339,1.68190329,95993.0,95992.0,0.0759864]
[1734893309540,0.63790329,95993.0,95992.0,0.0759864]
[1734893309719,0.65390329,95993.0,95992.0,0.0759864]
[1734893309919,0.65290329,95993.0,95992.0,0.0759864]
[1734893310323,0.65690329,95993.0,95992.0,0.0759864]
[1734893310557,0.63690329,95993.0,95992.0,0.0759864]
[1734893311163,0.82090329,95993.0,95992.0,0.0759864]
[1734893311349,0.256,95993.0,95992.0,0.0759864]
[1734893311549,0.004,95993.0,95992.0,0.0759864]
[1734893311777,0.28059089,95995.0,95992.0,0.0759864]
[1734893311778,0.07224689,95994.0,95992.0,0.0759864]
[1734893311982,0.001,95993.0,95992.0,0.0759864]
[1734893312411,0.09648098,95994.0,95992.0,0.0759864]
[1734893312622,0.208348,95993.0,95992.0,0.0759864]
[1734893313809,0.09648098,95994.0,95992.0,0.0759864]
[1734893314009,0.16872787,95994.0,95992.0,0.0759864]
[1734893314635,0.16872787,95994.0,95992.0,0.0760721]
[1734893314853,0.16889927,95994.0,95992.0,0.0760721]
[1734893315056,0.16989927,95994.0,95992.0,0.0760721]
[1734893315209,0.208348,95993.0,95992.0,0.0760721]
[1734893315466,0.16989927,95994.0,95992.0,0.0760721]
[1734893315651,0.0011714,95994.0,95992.0,0.0760721]
[1734893316849,0.208348,95993.0,95992.0,0.0760721]
[1734893318403,0.209348,95993.0,95992.0,0.0760721]
[1734893318620,0.21586879,95993.0,95992.0,0.0760721]
[1734893319731,0.31717719,95993.0,95992.0,0.0760721]
[1734893320049,0.31717719,95993.0,95992.0,8.57e-05]
[1734893320050,2.83142408,95993.0,95992.0,8.57e-05]
[1734893320204,2.80342408,95993.0,95992.0,8.57e-05]
[1734893320382,2.65842408,95993.0,95992.0,8.57e-05]
[1734893321012,2.80842408,95993.0,95992.0,8.57e-05]
[1734893323983,2.73617719,95993.0,95992.0,8.57e-05]
[1734893324184,0.00752079,95993.0,95992.0,8.57e-05]
[1734893325767,0.00752079,95993.0,95992.0,0.08211654]
[1734893325991,0.00752079,95993.0,95992.0,0.0791857]
[1734893326193,0.00752079,95993.0,95992.0,0.08211654]
[1734893328136,0.00752079,95993.0,95992.0,0.13141654]
[1734893330762,0.00752079,95993.0,95992.0,0.13245812]
[1734893331282,0.00752079,95993.0,95992.0,0.13141654]
[1734893331927,0.00652079,95993.0,95992.0,0.13245812]
[1734893332120,0.00752079,95993.0,95992.0,0.13345812]
[1734893332550,1.0,96000.0,95999.0,0.290235]
[1734893332883,1.0,96000.0,95999.0,0.29314809]
[1734893333702,1.001,96000.0,95999.0,0.29414809]
[1734893336017,1.001,96000.0,95999.0,0.08581309]
[1734893340476,1.0011714,96000.0,95999.0,0.08581309]
[1734893343350,1.0011714,96000.0,95999.0,0.00391309]
[1734893344853,1.00769123,96000.0,95999.0,0.00391309]
[1734893345287,1.00769123,96000.0,95999.0,0.001]
[1734893347388,1.00769123,96000.0,95999.0,0.21224941]
[1734893347569,1.00769123,96000.0,95999.0,0.209335]
[1734893347767,1.00769123,96000.0,95999.0,0.21224941]
[1734893348088,1.00769123,96000.0,95999.0,0.29144941]
[1734893351523,1.00769123,96000.0,95999.0,0.63587684]
[1734893351727,1.00769123,96000.0,95999.0,0.42754184]
[1734893351931,1.00769123,96000.0,95999.0,0.34834184]
[1734893353025,1.00769123,96000.0,95999.0,0.34734184]
[1734893353026,1.00669123,96000.0,95999.0,0.34734184]
[1734893353634,1.00669123,96000.0,95999.0,0.00291441]
[1734893354217,1.00669123,96000.0,95994.0,0.208345]
[1734893354589,1.00669123,96000.0,95999.0,0.002]
[1734893354818,1.0001714,96000.0,95995.0,0.00284779]
[1734893354970,1.0001714,96000.0,95999.0,0.0028456]
[1734893355173,1.0001714,96000.0,95994.0,0.208345]
[1734893355532,1.0001714,96000.0,95995.0,0.00284779]
[1734893355737,1.0001714,96000.0,95999.0,0.002]
[1734893355959,1.0001714,96000.0,95995.0,0.00284779]
[1734893355960,0.41667,95999.0,95995.0,0.00284779]
[1734893356178,0.41667,95999.0,95993.0,0.0934247]
[1734893356388,0.41667,95999.0,95994.0,0.002]
[1734893356558,0.208339,95997.0,95994.0,0.00484833]
[1734893357099,0.00652031,95998.0,95994.0,0.00484833]
[1734893357307,0.00652031,95998.0,95994.0,0.002]
[1734893357633,0.00652031,95996.0,95993.0,8.57e-05]
[1734893358242,0.00652031,95995.0,95993.0,8.57e-05]
[1734893358620,0.00652031,95995.0,95994.0,0.335546]
[1734893358842,1.0001714,96000.0,95999.0,0.208335]
[1734893359320,1.0001714,96000.0,95999.0,0.21118885]
[1734893359887,1.00669071,96000.0,95999.0,0.21118885]
[1734893361309,1.00769071,96000.0,95999.0,0.21118885]
[1734893362770,1.00669071,96000.0,95999.0,0.21118885]
[1734893363166,1.00669071,96000.0,95999.0,0.55582449]
[1734893364106,1.00769071,96000.0,95999.0,0.55582449]
[1734893364655,1.00669071,96000.0,95999.0,0.73968364]
[1734893365281,1.00669071,96000.0,95999.0,0.53134864]
[1734893365467,1.00669071,96000.0,95999.0,0.53334864]
[1734893365835,1.00669071,96000.0,95999.0,0.34948949]
[1734893366856,1.00669071,96000.0,95999.0,0.00485385]
[1734893367945,1.00669071,96000.0,95999.0,0.14496308]
[1734893369252,1.00669071,96000.0,95999.0,0.3499294]
[1734893370130,1.00669092,96000.0,95999.0,0.3499294]
[1734893370328,1.00669092,96000.0,95999.0,0.53378855]
[1734893370672,1.0001714,96000.0,95999.0,0.53378855]
[1734893372121,1.15669117,96000.0,95999.0,0.53178855]
[1734893372520,1.33024646,96000.0,95999.0,0.53178855]
[1734893372824,1.33024646,96000.0,95999.0,0.00285385]
[1734893373185,0.15,95999.0,95995.0,0.09358243]
[1734893373366,0.1013084,95998.0,95995.0,0.09358243]
[1734893373664,0.07224689,95997.0,95996.0,0.00284879]
[1734893373873,0.18007506,95997.0,95996.0,0.00284879]
[1734893374046,0.208342,95996.0,95993.0,8.57e-05]
[1734893374247,0.3096504,95996.0,95993.0,8.57e-05]
[1734893374443,0.3096504,95996.0,95994.0,0.00284988]
[1734893374950,0.5179924,95996.0,95993.0,8.57e-05]
[1734893375151,0.208346,95994.0,95993.0,8.57e-05]
[1734893375876,0.21486577,95994.0,95993.0,8.57e-05]
[1734893378344,0.21586577,95994.0,95993.0,8.57e-05]
[1734893379656,0.44716577,95994.0,95993.0,8.57e-05]
[1734893379863,3.06272106,95994.0,95993.0,8.57e-05]
[1734893381187,2.79472106,95994.0,95993.0,8.57e-05]
[1734893381356,1.02472106,95994.0,95993.0,8.57e-05]
[1734893381932,0.74272106,95994.0,95993.0,8.57e-05]
[1734893382330,0.27951977,95994.0,95993.0,8.57e-05]
[1734893382580,0.00751977,95994.0,95993.0,8.57e-05]
[1734893383002,0.00751977,95994.0,95993.0,0.00294756]
[1734893383376,0.00751977,95994.0,95993.0,8.57e-05]
[1734893383583,0.00751977,95994.0,95993.0,0.00294578]
[1734893384121,0.00751977,95994.0,95993.0,8.57e-05]
[1734893386701,0.00751977,95994.0,95993.0,0.25863544]
[1734893386900,0.00751977,95994.0,95993.0,0.46545529]
[1734893387298,0.00751977,95994.0,95993.0,0.57581474]
[1734893387590,0.001,95994.0,95993.0,0.57581474]
[1734893387764,0.00651977,95999.0,95998.0,0.36279011]
[1734893387963,0.00651977,95999.0,95998.0,0.46409851]
[1734893388176,0.00651977,95999.0,95998.0,0.46695075]
[1734893388325,1.0001714,96000.0,95999.0,0.10705311]
[1734893388540,1.0001714,96000.0,95999.0,0.2112132]
[1734893389645,1.0001714,96000.0,95999.0,1.04075585]
[1734893390880,1.0011714,96000.0,95999.0,1.04275585]
[1734893391483,1.0011714,96000.0,95999.0,1.14275585]
[1734893394200,0.47971663,96000.0,95999.0,1.14275585]
[1734893395030,0.47971663,96000.0,95999.0,0.65885597]
[1734893397951,0.47971663,96000.0,95999.0,0.89256741]
[1734893398287,0.47971663,96000.0,95999.0,1.42856741]
[1734893399073,0.47971663,96000.0,95999.0,1.47556741]
[1734893400332,0.36383759,96000.0,95999.0,1.41485597]
[1734893400529,0.13157259,96000.0,95999.0,1.41485597]
[1734893401075,0.13057259,96000.0,95999.0,1.41285597]
[1734893401552,0.13157259,96000.0,95999.0,1.41885597]
[1734893401730,0.13057259,96000.0,95999.0,1.41285597]
[1734893402111,0.13157259,96000.0,95999.0,1.41885597]
[1734893403656,0.13157259,96000.0,95999.0,1.14585597]
[1734893405098,0.13057259,96000.0,95999.0,1.13985597]
[1734893405362,0.13157259,96000.0,95999.0,1.14585597]
[1734893405564,0.13157259,96000.0,95999.0,1.24585597]
[1734893405763,0.13157259,96000.0,95999.0,1.28592345]
[1734893405961,0.13157259,96000.0,95999.0,1.38592345]
[1734893407232,0.13157259,96000.0,95999.0,1.24585597]
[1734893409610,0.13157259,96000.0,95999.0,1.26885597]
[1734893411014,0.13157259,96000.0,95999.0,1.41885597]
[1734893412037,0.00651688,96031.0,96015.0,0.31325311]
[1734893412217,0.00651688,96031.0,96015.0,0.41456151]
[1734893412642,0.0763,96041.0,96015.0,0.41456151]
[1734893412643,0.00651688,96040.0,96015.0,0.41738087]
[1734893413241,0.00651688,96039.0,96015.0,0.41738087]
[1734893413716,0.21476588,96039.0,96015.0,0.41738087]
[1734893413951,0.00116229,96016.0,96015.0,0.42338087]
[1734893414216,0.00116229,96016.0,96015.0,0.34618087]
[1734893417023,0.00767917,96016.0,96015.0,0.34618087]
[1734893417879,0.00767917,96016.0,96015.0,0.35635569]
[1734893418316,0.00767917,96016.0,96015.0,0.96955569]
[1734893418783,0.00116229,96016.0,96015.0,0.96955569]
[1734893421404,0.00116229,96016.0,96015.0,0.89235569]
[1734893422605,0.00116229,96016.0,96015.0,0.86460258]
[1734893422803,0.00767951,96016.0,96015.0,0.86460258]
[1734893423556,0.00767951,96016.0,96015.0,0.54481936]
[1734893424006,0.08256229,96016.0,96015.0,0.00881936]
[1734893424445,2.84811758,96016.0,96015.0,0.00881936]
[1734893424628,0.2083,96015.0,96012.0,0.09328583]
[1734893424843,0.15364689,96013.0,96012.0,0.09328583]
[1734893425046,2.74564689,96013.0,96012.0,0.09328583]
[1734893425477,2.7521666,96013.0,96012.0,0.09328583]
[1734893425708,2.7521666,96013.0,96000.0,8.57e-05]
[1734893425709,0.208331,96001.0,96000.0,8.57e-05]
[1734893426038,0.208323,96005.0,96000.0,8.57e-05]
[1734893426262,0.00651971,96001.0,96000.0,8.57e-05]
[1734893427979,0.00751971,96001.0,96000.0,0.0040857]
[1734893428598,0.08661971,96001.0,96000.0,0.0040857]
[1734893428802,0.1588666,96001.0,96000.0,0.0040857]
[1734893429003,0.08661971,96001.0,96000.0,0.0040857]
[1734893429923,0.08561971,96001.0,96000.0,8.57e-05]
[1734893430066,0.08661971,96001.0,96000.0,8.57e-05]
[1734893430895,0.3088666,96001.0,96000.0,8.57e-05]
[1734893431117,0.3553666,96001.0,96000.0,8.57e-05]
[1734893432798,0.2053666,96001.0,96000.0,8.57e-05]
[1734893432958,0.3553666,96001.0,96000.0,8.57e-05]
[1734893433912,0.456675,96001.0,96000.0,8.57e-05]
[1734893434345,0.455675,96001.0,96000.0,8.57e-05]
[1734893434564,0.456675,96001.0,96000.0,8.57e-05]
[1734893435921,0.28311971,96001.0,96000.0,8.57e-05]
[1734893436146,0.00651971,96001.0,96000.0,8.57e-05]
[1734893436345,0.00651971,96001.0,96000.0,0.00112722]
[1734893436553,0.00751971,96001.0,96000.0,0.00112722]
[1734893436943,0.00751971,96001.0,96000.0,0.00376524]
[1734893437145,0.00751971,96001.0,96000.0,8.57e-05]
[1734893437377,0.0011714,96001.0,96000.0,0.00272372]
[1734893437571,0.0011714,96001.0,96000.0,8.57e-05]
[1734893437770,0.0001714,96001.0,96000.0,0.00272372]
[1734893438003,0.0001714,96001.0,96000.0,8.57e-05]
[1734893438196,0.0001714,96001.0,96000.0,0.00272372]
[1734893438403,0.0001714,96001.0,96000.0,8.57e-05]
[1734893438699,0.0001714,96001.0,96000.0,0.00272372]
[1734893439062,0.0001714,96001.0,96000.0,0.00672372]
[1734893439477,0.0001714,96001.0,96000.0,0.00272372]
[1734893439678,0.0001714,96001.0,96000.0,0.00376523]
[1734893439880,0.0001714,96001.0,96000.0,0.00776523]
[1734893440083,0.0001714,96001.0,96000.0,0.00376523]
[1734893440282,0.0001714,96001.0,96000.0,0.08636523]
[1734893440880,0.0001714,96001.0,96000.0,0.08136523]
[1734893441078,0.0001714,96001.0,96000.0,0.08636523]
[1734893441688,0.0001714,96001.0,96000.0,0.00772372]
[1734893442568,0.0001714,96001.0,96000.0,0.00272372]
[1734893442765,0.0011714,96001.0,96000.0,0.00772372]
[1734893443089,0.0001714,96001.0,96000.0,0.00272372]
[1734893443479,0.0001714,96001.0,96000.0,0.00572372]
[1734893444029,0.00669111,96001.0,96000.0,0.00272372]
[1734893444442,0.00669111,96001.0,96000.0,0.00672372]
[1734893444748,0.287269,96001.0,96000.0,0.00672372]
[1734893444947,0.287269,96001.0,96000.0,0.0040857]
[1734893444948,0.21502211,96001.0,96000.0,0.0040857]
[1734893445771,0.21502211,96001.0,96000.0,8.57e-05]
[1734893446147,0.21502211,96001.0,96000.0,0.0030857]
[1734893446344,0.21502211,96001.0,96000.0,8.57e-05]
[1734893446815,0.21602211,96001.0,96000.0,8.57e-05]
[1734893447014,0.00769111,96001.0,96000.0,8.57e-05]
[1734893448678,0.00769111,96001.0,96000.0,0.00272049]
[1734893448881,0.079938,96001.0,96000.0,8.57e-05]
[1734893449104,0.078938,96001.0,96000.0,8.57e-05]
[1734893449309,0.079938,96001.0,96000.0,8.57e-05]
[1734893449774,0.078938,96001.0,96000.0,8.57e-05]
[1734893449907,0.079938,96001.0,96000.0,8.57e-05]
[1734893450300,0.078938,96001.0,96000.0,8.57e-05]
[1734893450503,0.080938,96001.0,96000.0,8.57e-05]
[1734893450989,0.078938,96001.0,96000.0,8.57e-05]
[1734893452604,0.080938,96001.0,96000.0,8.57e-05]
[1734893460650,0.3322464,96001.0,96000.0,8.57e-05]
[1734893460875,2.8502464,96001.0,96000.0,8.57e-05]
[1734893462618,2.8991464,96001.0,96000.0,8.57e-05]
[1734893463377,2.8971464,96001.0,96000.0,8.57e-05]
[1734893463577,2.8971464,96001.0,96000.0,0.0010857]
[1734893463578,2.9031464,96001.0,96000.0,0.0010857]
[1734893463782,2.5731464,96001.0,96000.0,0.0010857]
[1734893463991,2.1151464,96001.0,96000.0,0.0010857]
[1734893464198,1.9971464,96001.0,96000.0,0.0010857]
[1734893464393,1.9791464,96001.0,96000.0,0.0010857]
[1734893466524,2.00022895,96001.0,96000.0,0.0010857]
[1734893468516,0.48222895,96001.0,96000.0,0.0010857]
[1734893468927,2.92422895,96001.0,96000.0,0.0010857]
[1734893469077,2.91922895,96001.0,96000.0,0.0010857]
[1734893469290,2.82722895,96001.0,96000.0,0.0010857]
[1734893471880,2.82740015,96001.0,96000.0,0.0010857]
[1734893475808,0.1814176,96001.0,96000.0,0.0010857]
[1734893476019,0.00786231,96001.0,96000.0,0.0473857]
[1734893476224,0.00786231,96001.0,96000.0,0.2557187]
[1734893476424,0.00786231,96001.0,96000.0,0.25836795]
[1734893477029,0.00186231,96001.0,96000.0,0.25736795]
[1734893477232,0.00386231,96001.0,96000.0,0.25736795]
[1734893477725,0.00186231,96001.0,96000.0,0.25736795]
[1734893477928,0.00286231,96001.0,96000.0,0.34436795]
[1734893478136,0.00286231,96001.0,96000.0,0.47342946]
[1734893478364,0.00186231,96001.0,96000.0,0.56942946]
[1734893478773,0.09344636,96040.0,96015.0,0.2083]
[1734893478976,0.09344636,96040.0,96015.0,0.46666151]
[1734893479187,0.09344636,96040.0,96015.0,0.56929619]
[1734893479394,0.07224689,96049.0,96015.0,0.56929619]
[1734893479595,0.208219,96053.0,96015.0,0.56929619]
[1734893479809,0.01052534,96056.0,96015.0,0.56929619]
[1734893479986,0.07224689,96054.0,96015.0,0.56929619]
[1734893480218,0.01052534,96056.0,96015.0,0.56929619]